[Event "MCCT Oslo Esports Cup 2022"]
[Site "Oslo"]
[Date "2022.04.20"]
[Round "7.1"]
[White "Hansen, Eric"]
[Black "Duda, Jan-Krzysztof"]
[Result "0-1"]
[ECO "C65"]
[WhiteElo "2606"]
[BlackElo "2750"]
[Annotator "TA"]
[PlyCount "54"]
[EventDate "2022.04.14"]
[EventType "tourn"]
[EventCountry "NOR"]
[SourceTitle "playchess.com"]
[Source "ChessBase"]
[SourceQuality "1"]
[TimeControl "900+10"]

{[%evp 9,54,2,14,16,18,7,8,0,8,0,0,-24,-21,-9,-31,-85,-95,-96,-91,-93,-93,-120,-105,-117,-110,-112,-114,-286,-275,-530,-509,-495,-487,-700,-700,-693,-663,-1135,-1127,-1555,-1369,-29990,-29984,-29984,-29985,-29984,-1060]} 1. e4 {[%emt 0:00:00]} e5 {[%emt 0:00:00]} 2. Nf3 {[%emt 0:00:04]} Nc6 {[%emt 0:00:01]} 3. Bb5 {[%emt 0:00:07]} Nf6 {[%emt 0:00:01]} 4. d3 {[%emt 0:00:06]} Bc5 {[%emt 0:00:02]} 5. c3 {[%emt 0:00:10]} d5 {[%emt 0:00:02]} 6. exd5 {[%emt 0:00:26] C65: Ruy Lopez: Berlin Defence (3...Nf6), unusual lines and 4 0-0 Bc5.} Qxd5 {[%emt 0:00:00][%cal Oc5f2]} 7. Bc4 {[%emt 0:00:01]} Qd6 {[%emt 0:00:02]} 8. Nbd2 {[%emt 0:00:03] Prevents e4. The position is equal.} Bf5 {[%emt 0:00:04][%cal Bc8f5,Bf5g6,Bg6h7][%mdl 32]} 9. Qe2 {[%emt 0:00:06] aiming for d4.} O-O {[%emt 0:00:13]} 10. Ng5 {[%emt 0:03:10]} Qd7 {[%emt 0:03:07]} 11. Nde4 {[%emt 0:00:32]} Be7 {[%emt 0:00:14] [#]} 12. Ng3 $146 {[%emt 0:00:46]} (12. Nf3 $15) ({Predecessor:} 12. Bb3 Rad8 13. Bc2 Nd5 14. Nf3 h6 15. O-O Bg6 16. Bd2 Rfe8 17. Rfe1 f5 18. Ng3 {0-1 (35) Drost,P (2105)-Narkun,M (2264) ICCF email 2018}) 12... Bg6 $1 $17 {[%emt 0:00:33]} 13. h4 {[%emt 0:00:14]} Rad8 {[%emt 0:00:13]} 14. N5e4 {[%emt 0:00:17]} Na5 {[%emt 0:00:26]} 15. Bb3 {[%emt 0:03:22]} Nxb3 {[%emt 0:01:35]} (15... Qxd3 $6 16. Qxd3 Rxd3 17. Nxf6+ Bxf6 18. h5 $11) 16. axb3 {[%emt 0:00:02]} h6 {[%emt 0:00:05]} (16... Qxd3 $6 17. Qxd3 Rxd3 18. Nxf6+ gxf6 19. h5 $14) 17. h5 {[%emt 0:00:05]} Bh7 $1 {[%emt 0:00:09] ...Nd5 is the strong threat.} 18. Rxa7 $2 {[%emt 0:00:49] This move loses the game for White.} (18. Nxf6+ $17 {is a better defense.} Bxf6 19. Ne4) 18... Nd5 $1 $19 {[%emt 0:00:11]} ({And not} 18... Qxd3 19. Qxd3 Rxd3 20. Nxf6+ Bxf6 21. Rxb7 $11) 19. Rxb7 $2 {[%emt 0:03:34]} (19. d4 exd4 20. O-O) 19... Nf4 {[%emt 0:00:55]} 20. Bxf4 {[%emt 0:01:54]} exf4 {[%emt 0:00:00]} 21. d4 {[%emt 0:00:00]} ({Don't play} 21. Nf1 Ra8 22. Qf3 (22. Qd1 $2 Qc6 $19) 22... Rfd8 $19) (21. O-O $142 fxg3 22. Qf3) 21... fxg3 {[%emt 0:00:21]} 22. Nxg3 {[%emt 0:00:00] [#]} Qc6 $1 {[%emt 0:00:52][%csl LRb7,LRg2]} 23. Qf3 {[%emt 0:00:17]} (23. O-O Qxb7) 23... Qa6 {[%emt 0:00:11] Threatens to win with ...Rfe8.} 24. Rxc7 {[%emt 0:02:43]} Bd6 {[%emt 0:00:03] ( -> ...Rde8+)} 25. Rc4 {[%emt 0:00:18]} Qa1+ {[%emt 0:00:15] Black mates.} 26. Qd1 {[%emt 0:00:04]} Rfe8+ {[%emt 0:00:10]} 27. Ne2 {[%emt 0:00:16] [#]} Qxb2 {[%emt 0:00:29] Weighted Error Value: White=1.15/Black=0.06 (flawless)} (27... Rxe2+ $142 $1 {[%mdl 512]} 28. Kxe2 Re8+ 29. Kf3 Be4+ 30. Kg4 Qxb2 31. Qe1 Qxb3 32. Qc1 {[#]} Bf5+ $1 {[%mdl 512]} 33. Kh4 Qb7 34. Re1 Qxg2 $1 35. Rxe8+ Kh7 36. Rh8+ Kxh8 37. Rc8+ Bxc8 38. Qxh6+ gxh6 39. c4 Qxf2#) 0-1

[Event "MCCT Oslo Esports Cup 2022"]
[Site "Oslo"]
[Date "2022.04.28"]
[Round "7.2"]
[White "Carlsen, Magnus"]
[Black "Mamedyarov, Shakhriyar"]
[Result "0-1"]
[ECO "A21"]
[WhiteElo "2864"]
[BlackElo "2771"]
[Annotator "TA"]
[PlyCount "130"]
[EventDate "2022.04.14"]
[EventType "tourn"]
[EventCountry "NOR"]
[SourceTitle "playchess.com"]
[Source "ChessBase"]
[SourceQuality "1"]
[TimeControl "900+10"]

{[%evp 9,130,0,0,0,0,0,0,0,0,0,8,-10,0,-7,0,-6,0,0,-1,0,0,0,0,-7,-4,-4,-3,-15,-5,-11,-15,-17,-5,-13,-9,-13,-4,-11,-6,-6,-7,-6,0,0,0,-12,-8,-41,-6,-7,-6,-32,0,0,12,0,0,0,0,0,0,0,0,-34,-32,-40,-25,-116,-79,-193,-163,-121,-128,-250,-260,-256,-229,-237,-173,-359,-354,-338,-346,-342,-329,-333,-333,-300,-272,-253,-248,-216,-175,-177,-8,-8,-8,-8,-8,-8,-8,-8,-8,-8,-8,-8,-8,-2276,-1547,-29951,-29959,-29970,-29973,-29973,-29972,-29976,-29977,-29977,-29978,-29979,-29980,-29980,-29981]} 1. c4 {[%emt 0:00:00]} e5 {[%emt 0:00:00]} 2. Nc3 {[%emt 0:00:04]} Bb4 {[%emt 0:00:02]} 3. Nd5 {[%emt 0:00:01]} Be7 {[%emt 0:00:01]} 4. Nf3 {[%emt 0:00:38]} d6 {[%emt 0:00:03]} 5. d4 {[%emt 0:00:08]} Nf6 {[%emt 0:00:03]} 6. Nxe7 {[%emt 0:00:03] A21: English Opening: 1...e5 2 Nc3.} Qxe7 {[%emt 0:00:01]} 7. e3 {[%emt 0:00:01]} exd4 {[%emt 0:00:09]} 8. Nxd4 {[%emt 0:01:06] The position is equal.} O-O {[%emt 0:00:02]} 9. Be2 {[%emt 0:00:43]} Rd8 {[%emt 0:00:01]} 10. O-O {[%emt 0:01:07]} c5 {[%emt 0:00:08]} 11. Nf3 {[%emt 0:01:23] [#]} Nc6 $146 {[%emt 0:00:12]} ({Predecessor:} 11... Bf5 12. Bd2 Ne4 13. Qb3 Nxd2 14. Nxd2 Nc6 15. Rfe1 Be6 16. e4 a6 17. Qc3 Nd4 {0-1 (58) Piorun,K (2643)-Kashlinskaya,A (2481) Douglas 2019}) 12. Bd2 {[%emt 0:01:11]} d5 {[%emt 0:00:45]} 13. cxd5 {[%emt 0:00:05]} Rxd5 {[%emt 0:00:02]} 14. Qb3 {[%emt 0:00:09]} Be6 {[%emt 0:03:27][%cal Od5d2]} 15. Bc3 {[%emt 0:01:26]} Ne4 {[%emt 0:01:00]} 16. Bc4 {[%emt 0:00:05] A strong pair of Bishops.} Rd6 {[%emt 0:02:25]} 17. Bxe6 {[%emt 0:00:02]} Rxe6 {[%emt 0:00:00]} 18. Rad1 {[%emt 0:00:13]} h6 {[%emt 0:00:24]} 19. a4 {[%emt 0:00:17]} b6 {[%emt 0:00:15]} (19... Rg6 {with more complications.} 20. h3 b6 21. Qc2 Qe6) 20. h3 {[%emt 0:00:42]} Nxc3 {[%emt 0:00:24]} (20... Rg6 {keeps more tension.} 21. Qc2 Qe6 22. Nh4 Nxc3 23. bxc3 Rf6) 21. bxc3 {[%emt 0:00:29]} Rd8 {[%emt 0:00:09]} 22. Rxd8+ {[%emt 0:00:04]} Qxd8 {[%emt 0:00:00]} 23. Rd1 {[%emt 0:00:24]} Rd6 {[%emt 0:00:03]} 24. Rxd6 {[%emt 0:00:00]} Qxd6 {[%emt 0:00:00]} 25. Qc2 {[%emt 0:00:23]} g6 {[%emt 0:00:22]} 26. Qe4 {[%emt 0:00:05]} Kg7 {[%emt 0:00:06]} 27. g3 {[%emt 0:00:20]} a6 {[%emt 0:00:19]} 28. Qb1 {[%emt 0:00:53]} Ne7 {[%emt 0:01:09]} 29. c4 {[%emt 0:00:34]} Ng8 {[%emt 0:00:37]} 30. Qb2+ {[%emt 0:00:43]} Qf6 {[%emt 0:00:27]} 31. Qxf6+ {[%emt 0:00:23]} Nxf6 $11 {[%emt 0:00:26][%mdl 4096] Endgame KN-KN} 32. Ne5 {[%emt 0:00:48]} Kf8 {[%emt 0:00:02]} 33. f3 {[%emt 0:00:02]} Ke7 {[%emt 0:00:07]} 34. Kf2 {[%emt 0:00:06]} Ke6 {[%emt 0:00:24]} 35. Nd3 {[%emt 0:00:38]} Ne8 {[%emt 0:00:54]} 36. a5 {[%emt 0:01:14]} bxa5 {[%emt 0:00:09]} 37. Nxc5+ {[%emt 0:00:02]} Kd6 {[%emt 0:00:02]} 38. Na4 {[%emt 0:00:04]} (38. Nb7+ $11 Kc6 39. Nxa5+ Kc5 40. Ke2) 38... Nc7 {[%emt 0:00:34]} 39. e4 {[%emt 0:01:04]} (39. Ke1 $17 {was necessary.}) 39... Ne6 $19 {[%emt 0:00:01]} 40. Ke3 {[%emt 0:00:01]} Nc5 {[%emt 0:00:09]} 41. e5+ {[%emt 0:00:03]} (41. Nc3 $17) 41... Kc6 {[%emt 0:00:01]} 42. Nc3 {[%emt 0:00:02]} a4 {[%emt 0:00:06][%cal Ba5a4,Ba4a3][%mdl 32]} 43. f4 {[%emt 0:00:36] [#]} a3 $1 {[%emt 0:00:03]} 44. g4 $2 {[%emt 0:00:14]} (44. Na2 {is a better defense.}) 44... Ne6 {[%emt 0:02:26]} 45. f5 {[%emt 0:00:40]} gxf5 {[%emt 0:00:02]} 46. gxf5 {[%emt 0:00:00]} Ng7 {[%emt 0:00:01]} 47. f6 {[%emt 0:00:24]} Ne6 {[%emt 0:00:15] Threatens to win with ...Kc5.} 48. Kd3 {[%emt 0:00:02]} Kd7 {[%emt 0:01:33]} ({Not} 48... Kc5 49. Na2 $19) 49. h4 {[%emt 0:00:25]} h5 {[%emt 0:00:50] Strongly threatening ...Nf4+.} 50. Ke4 {[%emt 0:01:37]} Kc6 {[%emt 0:00:05] White must now prevent ...Kc5.} 51. Kd3 {[%emt 0:00:03]} a5 $2 {[%emt 0:00:40]} (51... Kc5 $19 {And now ...Kb4 would win.} 52. Na2 Nf4+ 53. Kc3 Ng6) 52. Kc2 $11 {[%emt 0:00:08]} Nd4+ {[%emt 0:00:02]} 53. Kb1 {[%emt 0:00:01]} Kd7 {[%emt 0:00:34]} 54. Ne4 {[%emt 0:00:16]} Nf3 {[%emt 0:00:19]} (54... Ke6 $5 {[%cal Rd4f5]} 55. c5 Kxe5 $17) 55. Ng3 {[%emt 0:00:11]} Nd2+ {[%emt 0:00:55]} ({Much worse is} 55... Nxh4 $6 56. Nxh5 Nf3 57. Ka2 $17) 56. Ka2 {[%emt 0:00:11]} Nxc4 {[%emt 0:00:00] aiming for ...Ke6.} 57. Nxh5 {[%emt 0:00:05]} Ke6 {[%emt 0:00:02]} 58. Nf4+ $2 {[%emt 0:01:11][%mdl 8192] White does not recover from this.} (58. Ng3 $11) 58... Kxe5 $19 {[%emt 0:00:02]} 59. Nd3+ {[%emt 0:00:06]} Kxf6 {[%emt 0:00:02] Black mates.} 60. Kb3 {[%emt 0:00:22]} a4+ {[%emt 0:00:14]} 61. Ka2 {[%emt 0:00:01]} Kg6 {[%emt 0:00:10]} 62. Nc5 {[%emt 0:00:07]} Kh5 {[%emt 0:00:36]} 63. Nxa4 {[%emt 0:00:10]} f5 {[%emt 0:00:01][%cal Bf7f5,Bf5f4,Bf4f3][%mdl 32]} 64. Nc3 {[%emt 0:00:06]} f4 {[%emt 0:00:05]} 65. Kb3 {[%emt 0:00:03] [#]} f3 $1 {[%emt 0:00:07] Weighted Error Value: White=0.34/Black=0.06 (flawless)} 0-1

[Event "MCCT Oslo Esports Cup 2022"]
[Site "Oslo"]
[Date "2022.04.28"]
[Round "7.2"]
[White "Giri, Anish"]
[Black "Praggnanandhaa R"]
[Result "1/2-1/2"]
[ECO "B31"]
[WhiteElo "2773"]
[BlackElo "2624"]
[Annotator "TA"]
[PlyCount "118"]
[EventDate "2022.04.14"]
[EventType "tourn"]
[EventCountry "NOR"]
[SourceTitle "playchess.com"]
[Source "ChessBase"]
[SourceQuality "1"]
[TimeControl "900+10"]

{[%evp 15,118,0,10,7,0,14,6,0,0,0,0,0,27,17,25,28,21,11,17,6,23,0,0,0,56,60,53,68,46,46,68,77,68,72,83,80,125,125,122,128,164,135,121,103,163,106,108,116,176,170,172,176,172,171,175,176,204,203,217,206,193,207,206,179,192,189,164,33,36,16,20,20,21,22,23,29,25,0,0,0,8,0,0,0,0,0,0,0,0,0,0,0,0,0,0,0,0,0,0,0,0,0,0,0,0]} 1. e4 {[%emt 0:00:00]} c5 {[%emt 0:00:00]} 2. Nf3 {[%emt 0:00:01]} Nc6 {[%emt 0:00:02]} 3. Bb5 {[%emt 0:00:02]} g6 {[%emt 0:00:01]} 4. O-O {[%emt 0:00:02]} Bg7 {[%emt 0:00:01]} 5. c3 {[%emt 0:00:02]} Nf6 {[%emt 0:00:01]} 6. Re1 {[%emt 0:00:01]} O-O {[%emt 0:00:01]} 7. d4 {[%emt 0:00:01]} d5 $1 {[%emt 0:00:01][%mdl 4] is currently scoring better than 7...cxd4.} 8. e5 {[%emt 0:00:01]} Ne4 {[%emt 0:00:01]} 9. Be3 {[%emt 0:00:01] B31: Sicilian: 2...Nc6 3 Bb5 g6.} cxd4 {[%emt 0:00:05]} (9... Qb6 {is more complex.} 10. Na3 cxd4 11. Nxd4 Nxe5 12. Nf5 Qc7) 10. cxd4 {[%emt 0:00:01]} Qb6 {[%emt 0:00:01]} 11. Bxc6 {[%emt 0:00:01]} bxc6 {[%emt 0:00:00]} 12. Qc1 {[%emt 0:00:02]} a5 {[%emt 0:00:01]} 13. Nc3 {[%emt 0:00:01] [#]} a4 $5 $146 {[%emt 0:00:00][%mdl 8] An interesting novelty.} ({Predecessor:} 13... Nxc3 14. Qxc3 Bf5 15. b3 Rfb8 16. Nd2 h5 17. h3 Rc8 18. Rac1 Bf8 19. a3 Rab8 {1-0 (57) So,W (2770)-Radjabov,T (2765) chess24.com INT 2021}) 14. Nxe4 {[%emt 0:00:10]} dxe4 {[%emt 0:00:00]} 15. Nd2 {[%emt 0:00:03]} Bf5 $1 {[%emt 0:00:02]} 16. Qc3 {[%emt 0:00:19]} Rfb8 {[%emt 0:00:03]} 17. b3 {[%emt 0:00:09]} Qb4 {[%emt 0:00:03]} (17... Qa5 {feels hotter.} 18. Qb2 f6 19. Rec1 fxe5 20. Nc4 Qb5) 18. Qxb4 {[%emt 0:02:05]} (18. Qxc6 $2 Rc8 19. a3 Qb8 $19) 18... Rxb4 {[%emt 0:00:00]} 19. a3 {[%emt 0:00:01]} Rb5 {[%emt 0:04:03]} ({Black should try} 19... Rxb3 $11 20. Nxb3 axb3) 20. b4 $14 {[%emt 0:00:11]} f6 {[%emt 0:00:02]} 21. exf6 {[%emt 0:00:20]} Bxf6 {[%emt 0:00:05]} 22. Rac1 {[%emt 0:00:19]} Rd8 {[%emt 0:00:33]} 23. Rxc6 {[%emt 0:00:49]} Bxd4 {[%emt 0:00:03]} 24. Bxd4 {[%emt 0:00:23]} Rxd4 {[%emt 0:00:00]} 25. Nb1 {[%emt 0:00:15]} Rd3 {[%emt 0:02:22]} 26. Nc3 {[%emt 0:00:27]} Rb8 {[%emt 0:00:05]} 27. h4 {[%emt 0:02:08]} Kf8 {[%emt 0:01:05]} 28. Re3 {[%emt 0:01:54]} Rbd8 {[%emt 0:01:15]} 29. b5 {[%emt 0:00:54]} Rb8 {[%emt 0:02:25] [#]} (29... R3d4 $16) 30. Kh2 {[%emt 0:06:25]} (30. Rc4 $1 $18) 30... Rd2 {[%emt 0:03:42]} 31. Kg3 {[%emt 0:00:06]} Bd7 {[%emt 0:00:41]} (31... Rb2 $16) 32. Rc4 $18 {[%emt 0:00:49]} ({Wrong is} 32. Rxe4 $2 Rd3+ 33. Re3 Rxe3+ 34. fxe3 Bxc6 35. bxc6 Rc8 36. Nxa4 Rxc6 $19) (32. Nxe4 Bxc6 33. Nxd2 Rxb5 $11) 32... Rb2 {[%emt 0:01:09]} 33. Rxa4 {[%emt 0:00:02]} Bxb5 {[%emt 0:00:07]} 34. Raxe4 {[%emt 0:00:01]} Rb7 {[%emt 0:00:06]} 35. Nd5 {[%emt 0:00:17]} Rd7 {[%emt 0:00:55]} 36. Nxe7 {[%emt 0:00:41]} Ra2 {[%emt 0:00:30]} 37. h5 {[%emt 0:00:19]} Kg7 {[%emt 0:00:26]} 38. hxg6 {[%emt 0:01:00]} hxg6 {[%emt 0:00:01]} 39. Re5 {[%emt 0:00:18]} Bc4 {[%emt 0:00:46]} 40. Nc6 {[%emt 0:00:36] Inhibits Ra7.} Rf7 {[%emt 0:00:17] [#]} 41. Rc5 {[%emt 0:00:19]} (41. Re7 $1 $18) 41... Bf1 $14 {[%emt 0:00:10]} 42. Ne5 {[%emt 0:00:19]} Rfxf2 {[%emt 0:00:25]} 43. Rc7+ {[%emt 0:00:01]} Kg8 {[%emt 0:00:10]} 44. Ng4 {[%emt 0:00:20] White wants to mate with Re8+.} Rxg2+ {[%emt 0:00:25]} ({Much less strong is} 44... Rf8 45. Re6 Rxg2+ 46. Kh4 g5+ 47. Kh5 $16) 45. Kf4 {[%emt 0:00:09][%cal Re3e8]} Rge2 $1 {[%emt 0:00:10]} 46. Rf3 {[%emt 0:00:10] Kg5 is the strong threat.} Bg2 {[%emt 0:00:03] The position is equal.} 47. Rfc3 {[%emt 0:00:08]} Rad2 {[%emt 0:00:12]} 48. Nf6+ {[%emt 0:00:11]} ({Don't take} 48. Kg5 Kf8 $14) 48... Kf8 {[%emt 0:00:03]} 49. Kg5 {[%emt 0:00:03] Hoping for Rh7.} Re5+ {[%emt 0:00:21]} 50. Kxg6 {[%emt 0:00:04][%csl Gg6][%cal Rc7f7]} Be4+ {[%emt 0:00:09]} 51. Nxe4 {[%emt 0:00:01]} Rxe4 $11 {[%emt 0:00:00][%mdl 4096] Endgame KRR-KRR} 52. Rf3+ {[%emt 0:00:12]} Ke8 {[%emt 0:00:02]} 53. Kf5 {[%emt 0:00:04]} Re7 {[%emt 0:00:05]} 54. Rxe7+ {[%emt 0:00:22]} Kxe7 {[%emt 0:00:04] KR-KR} 55. Ke4 {[%emt 0:00:00]} Kd6 {[%emt 0:00:03]} 56. Rd3+ {[%emt 0:00:00]} Rxd3 {[%emt 0:00:01]} 57. Kxd3 {[%emt 0:00:00]} Kc5 {[%emt 0:00:00]} 58. a4 {[%emt 0:00:00]} Kb4 {[%emt 0:00:01]} 59. a5 {[%emt 0:00:00]} Kxa5 {[%emt 0:00:00] Black escapes into a draw.  Weighted Error Value: White=0.09 (flawless) /Black=0.10 (very precise)} 1/2-1/2

[Event "MCCT Oslo Esports Cup 2022"]
[Site "Oslo"]
[Date "2022.04.20"]
[Round "7.2"]
[White "Van Foreest, Jorden"]
[Black "Le, Quang Liem"]
[Result "1-0"]
[ECO "C82"]
[WhiteElo "2714"]
[BlackElo "2709"]
[Annotator "TA"]
[PlyCount "73"]
[EventDate "2022.04.14"]
[EventType "tourn"]
[EventCountry "NOR"]
[SourceTitle "playchess.com"]
[Source "ChessBase"]
[SourceQuality "1"]
[TimeControl "900+10"]

{[%evp 23,73,0,0,0,0,0,0,0,0,-15,0,0,0,-27,-18,-25,-29,-67,0,0,0,0,-1,0,0,0,0,0,18,27,27,27,27,0,0,0,0,0,470,0,0,0,0,0,32,32,29992,29993,29993,29994,29994,29995]} 1. e4 {[%emt 0:00:00]} e5 {[%emt 0:00:00]} 2. Nf3 {[%emt 0:00:02]} Nc6 {[%emt 0:00:05]} 3. Bb5 {[%emt 0:00:01]} a6 {[%emt 0:00:04]} 4. Ba4 {[%emt 0:00:03]} Nf6 {[%emt 0:00:02]} 5. O-O {[%emt 0:00:01]} Nxe4 {[%emt 0:00:05]} 6. d4 {[%emt 0:00:05]} b5 {[%emt 0:00:02]} 7. Bb3 {[%emt 0:00:01]} d5 {[%emt 0:00:02]} 8. dxe5 {[%emt 0:00:01]} Be6 {[%emt 0:00:01]} 9. c3 {[%emt 0:00:17]} Bc5 {[%emt 0:00:03]} 10. Nbd2 {[%emt 0:00:03]} O-O {[%emt 0:00:03]} 11. Bc2 {[%emt 0:00:01]} Nxf2 {[%emt 0:00:01]} 12. Rxf2 {[%emt 0:00:02]} f6 {[%emt 0:00:00]} 13. Qe2 $5 {[%emt 0:00:28][%cal Oe5f6][%mdl 4] 13.Nf1 is becoming the main line. Leaves trodden paths. C82: Open Ruy Lopez: 9 c3 without 9...Be7.} fxe5 {[%emt 0:00:23]} 14. Nb3 {[%emt 0:00:01]} Bxf2+ {[%emt 0:00:09]} 15. Qxf2 {[%emt 0:00:00] The position is equal.} e4 {[%emt 0:02:31]} 16. Qe1 $1 {[%emt 0:00:05]} Bg4 {[%emt 0:00:48] [#]} (16... Qd6 $5 {[%cal Re4f3]} 17. Nfd4 Ne5 $15) 17. Bg5 $146 {[%emt 0:03:10]} ({Predecessor:} 17. Nfd4 Ne5 18. Be3 Qd6 19. Qg3 Rae8 20. Nd2 h5 21. Bf2 c5 22. N4b3 Rxf2 23. Nxe4 dxe4 24. Kxf2 c4 25. Nd4 Nd3+ {0-1 (25) Maumey,M-Thimognier,D France 1991}) 17... Qd6 {[%emt 0:00:36]} (17... exf3 $2 {[#]} 18. Bxh7+ $1 Kxh7 19. Qh4+ Kg8 20. Bxd8 f2+ 21. Kf1 $18) 18. Nfd4 {[%emt 0:00:08]} Ne5 {[%emt 0:00:23]} 19. Qg3 {[%emt 0:00:45]} Rae8 {[%emt 0:00:07]} 20. Be3 {[%emt 0:02:37]} c5 {[%emt 0:01:29]} (20... Rf6 $15 21. Nd2 Rg6) 21. Nxb5 $1 $11 {[%emt 0:00:30]} axb5 {[%emt 0:00:00]} 22. Bxc5 {[%emt 0:00:01]} Qf6 {[%emt 0:00:53] And now ...Rf7 would win.} 23. Bxf8 {[%emt 0:00:02]} Rxf8 {[%emt 0:00:00]} ({Don't do} 23... Kxf8 24. Rf1 Bf5 25. Nd4 $16) 24. Nd4 {[%emt 0:00:17]} Nc4 {[%emt 0:05:16][%cal Oc4b2]} 25. Bb3 {[%emt 0:00:30]} h5 {[%emt 0:00:12][%cal Oh5h4]} 26. h3 {[%emt 0:01:16]} Bd7 {[%emt 0:00:03]} 27. Bxc4 {[%emt 0:00:36]} bxc4 {[%emt 0:00:44]} 28. a4 {[%emt 0:00:38]} h4 {[%emt 0:00:27]} 29. Qe3 {[%emt 0:00:07]} Bxa4 {[%emt 0:02:02]} 30. Rxa4 {[%emt 0:01:44]} Qf1+ {[%emt 0:00:03]} 31. Kh2 {[%emt 0:00:01]} Qd1 $1 {[%emt 0:00:00] ( -> ...Rf1)} 32. Qg5 {[%emt 0:03:48][%csl LRd5,LRh4][%cal Od4e6] Threatening mate with Ne6!} Qxa4 {[%emt 0:00:04]} 33. Qxd5+ {[%emt 0:00:01]} Rf7 {[%emt 0:02:13]} (33... Kh8 $5 {[%cal Ra4e8]} 34. Nc6 Rf6 35. Qd8+ Kh7 $14) 34. Nc6 {[%emt 0:00:30][%mdl 1024] White threatens Ne7+ and mate. White has compensation.} e3 $2 {[%emt 0:01:10][%mdl 8192] [#]} (34... g6 $14) 35. Ne7+ $1 {[%emt 0:00:07] White mates.} Kf8 {[%emt 0:00:26]} 36. Qd8+ {[%emt 0:00:01]} Qe8 {[%emt 0:00:05]} 37. Ng6+ {[%emt 0:00:00][%mdl 64] Discovered Attack, Deflection, Double Attack.  Weighted Error Value: White=0.04 (flawless) /Black=0.40} 1-0

[Event "MCCT Oslo Esports Cup 2022"]
[Site "Oslo"]
[Date "2022.04.20"]
[Round "7.3"]
[White "Mamedyarov, Shakhriyar"]
[Black "Carlsen, Magnus"]
[Result "1-0"]
[ECO "E61"]
[WhiteElo "2771"]
[BlackElo "2864"]
[Annotator "TA"]
[PlyCount "87"]
[EventDate "2022.04.14"]
[EventType "tourn"]
[EventCountry "NOR"]
[SourceTitle "playchess.com"]
[Source "ChessBase"]
[SourceQuality "1"]
[TimeControl "900+10"]

{[%evp 9,87,18,31,35,33,0,29,33,27,23,42,3,57,70,71,68,67,33,38,41,49,42,51,47,85,72,67,43,44,44,102,95,132,83,122,133,139,137,130,106,117,122,118,116,131,120,120,130,142,111,112,106,106,108,112,114,114,112,114,0,83,0,118,114,126,118,117,110,105,88,103,79,563,563,545,524,6279,5396,1495,760]} 1. d4 {[%emt 0:00:00]} Nf6 {[%emt 0:00:00]} 2. c4 {[%emt 0:00:07]} g6 {[%emt 0:00:01]} 3. Nc3 {[%emt 0:00:19]} Bg7 {[%emt 0:00:04]} 4. g3 {[%emt 0:00:02]} c5 {[%emt 0:01:07]} 5. dxc5 {[%emt 0:00:02]} Qa5 {[%emt 0:00:03]} 6. Bg2 {[%emt 0:00:03] Against Ne4. E61: King's Indian: Early deviations for White, including Smyslov System.} Qxc5 {[%emt 0:00:03]} 7. Bd2 {[%emt 0:00:12]} O-O {[%emt 0:01:21]} (7... Qxc4 8. Rc1 Na6 9. Nd5 Qxa2 10. Ra1 Qc4 11. Ra4 Qc5 12. Nxf6+ Bxf6 13. Rxa6 bxa6 14. Bxa8 Bxb2 15. Nf3 O-O 16. O-O d6 {1-0 (45) Mamedyarov,S (2762)-Carlsen,M (2855) chess24.com INT 2021}) 8. Rc1 {[%emt 0:00:07][%cal Ob2b4] White has an edge.} d6 {[%emt 0:00:07]} 9. b3 {[%emt 0:03:19]} Nc6 {[%emt 0:00:03]} 10. Nf3 {[%emt 0:00:41] [#]} Qh5 $146 {[%emt 0:00:04]} (10... d5 $11) ({Predecessor:} 10... Ng4 11. O-O Qh5 12. Nd5 e5 13. h3 Nh6 14. Ng5 Nd4 15. e3 Ne2+ 16. Kh1 Nxc1 17. Qxh5 gxh5 18. Rxc1 {1-0 (28) Iskusnyh,S (2473)-Mikaelyan,A (2477) Chess.com INT 2021}) 11. h3 $14 {[%emt 0:00:28]} h6 {[%emt 0:00:13] Inhibits Ng5.} 12. g4 {[%emt 0:00:37]} Qc5 {[%emt 0:00:03]} 13. Be3 {[%emt 0:00:42]} Qa5 {[%emt 0:00:32]} 14. Qd2 {[%emt 0:00:01]} h5 {[%emt 0:00:06]} 15. g5 {[%emt 0:00:35]} Nd7 {[%emt 0:00:28]} 16. Nd5 {[%emt 0:00:13][%cal Od5e7]} Qd8 {[%emt 0:00:44]} 17. Nd4 {[%emt 0:00:23] 0x0.0005ebf1e525dp-1022s more active pieces. The black rooks are badly placed.} Nc5 {[%emt 0:01:08]} 18. Nxc6 {[%emt 0:00:45]} (18. O-O $5 {[%cal Rd4c6]}) 18... bxc6 {[%emt 0:00:09]} 19. Nb4 {[%emt 0:00:04]} Qc7 {[%emt 0:01:39]} (19... Bb7 $14) 20. Bxc6 $16 {[%emt 0:00:30]} Rb8 {[%emt 0:00:02][%cal Ob8b4] [#]} 21. Bg2 {[%emt 0:00:49]} ({White should try} 21. Nd5 $1 Qd8 22. f3) 21... a5 {[%emt 0:00:16]} 22. Nd5 {[%emt 0:00:09]} Qa7 {[%emt 0:00:01]} 23. O-O {[%emt 0:00:17]} Be6 {[%emt 0:00:02]} 24. Rfd1 {[%emt 0:00:19]} Bxd5 {[%emt 0:00:09]} 25. cxd5 {[%emt 0:00:28]} ({Resist} 25. Qxd5 a4 $14) 25... Rb4 {[%emt 0:00:53]} 26. Rc2 {[%emt 0:00:20]} Rc8 {[%emt 0:01:31]} 27. Rdc1 {[%emt 0:00:04]} Be5 {[%emt 0:00:02]} 28. Rc4 {[%emt 0:00:04]} Qb6 {[%emt 0:00:17]} 29. Rxb4 {[%emt 0:00:41]} axb4 {[%emt 0:00:18]} 30. Rc4 {[%emt 0:00:02]} Bc3 {[%emt 0:00:16]} 31. Qc2 {[%emt 0:00:06]} Qa5 {[%emt 0:00:26]} 32. Be4 {[%emt 0:01:15][%cal Oe4g6] Strongly threatening Bxg6!} Kh7 {[%emt 0:00:24] [#]} 33. Bf3 $1 {[%emt 0:00:16]} Kg8 {[%emt 0:00:43]} 34. Be4 {[%emt 0:00:04][%cal Oe4g6] Threatens to win with Bxg6!} Kh7 {[%emt 0:00:03]} 35. Bf3 {[%emt 0:00:02]} Kg8 {[%emt 0:00:03]} 36. Kg2 {[%emt 0:01:43]} Ra8 {[%emt 0:00:14]} 37. Bxc5 {[%emt 0:00:14]} (37. a4 {[#]} bxa3 $1 38. Rxc3 a2 39. Rxc5 (39. b4 $2 Qxb4 40. Rc4 Qe1 $19) 39... dxc5 $19) 37... dxc5 {[%emt 0:00:00]} 38. d6 $36 {[%emt 0:00:42][%mdl 2048] White has strong initiative.} exd6 {[%emt 0:00:02]} 39. Bxa8 {[%emt 0:00:12]} Qxa8+ {[%emt 0:00:01] KQR-KQB} 40. Kg1 {[%emt 0:01:13]} d5 $2 {[%emt 0:00:40][%mdl 8192] Loses the game.} (40... Bd4 $16 {is tougher.}) 41. Rxc5 $18 {[%emt 0:00:14] White is clearly winning.} d4 {[%emt 0:00:12]} 42. Qd3 {[%emt 0:00:49]} Qxa2 {[%emt 0:00:02]} 43. Rc8+ {[%emt 0:00:06]} Kh7 {[%emt 0:01:15]} 44. Qf3 {[%emt 0:00:20] Weighted Error Value: White=0.13 (very precise) /Black=0.28 (precise)} 1-0